lending/lending_fUSD_20251106
["ID","MTS","AMOUNT","RATE_DAILY","PERIOD"]
[393295723,1762428169317,250.0,0.00038702,120]
[393295724,1762428169956,250.0,0.00038702,120]
[393295725,1762428170605,250.0,0.00038702,120]
[393295726,1762428171264,250.0,0.00038702,120]
[393295727,1762428171906,250.0,0.00038702,120]
[393295728,1762428172921,390.8207902,0.00038702,120]
[393295729,1762428173046,250.0,0.00038702,120]
[393295730,1762428173685,250.0,0.00038702,120]
[393295731,1762428175010,250.0,0.00038702,120]
[393295732,1762428175643,250.0,0.00038702,120]
[393295733,1762428176238,250.0,0.00038702,120]
[393295734,1762428176837,250.0,0.00038702,120]
[393295735,1762428177162,1000.0,0.0003,120]
[393295736,1762428177500,250.0,0.00038702,120]
[393295737,1762428178127,250.0,0.00038702,120]
[393295738,1762428178742,250.0,0.00038702,120]
[393295739,1762428178803,389.93696246,0.00038702,120]
[393295740,1762428179463,250.0,0.00038702,120]
[393295741,1762428180078,250.0,0.00038702,120]
[393295742,1762428180765,250.0,0.00038702,120]
[393295743,1762428181346,326.1360299,0.00038702,120]
[393295744,1762428181412,250.0,0.00038702,120]
[393295745,1762428182021,250.0,0.00038702,120]
[393295746,1762428182667,250.0,0.00038702,120]
[393295747,1762428183273,250.0,0.00038702,120]
[393295748,1762428183348,250.68628343,0.00038702,120]
[393295749,1762428183880,250.0,0.00038702,120]
[393295750,1762428184526,250.0,0.00038702,120]
[393295751,1762428185295,250.0,0.00038702,120]
[393295752,1762428185471,218.88040101,0.00038702,120]
[393295753,1762428185805,250.0,0.00038702,120]
[393295754,1762428186423,250.0,0.00038702,120]
[393295755,1762428187030,250.0,0.00038702,120]
[393295756,1762428188564,273.44943071,0.00038702,120]
[393295757,1762428191394,2480.21964108,0.00017,3]
[393295758,1762428192594,298.47242543,0.00038702,120]
[393295759,1762428193277,403.62620573,0.00038702,120]
[393295760,1762428197603,193.88213849,0.00038702,120]
[393295761,1762428200844,298.425996,0.00026055,120]
[393295762,1762428202177,331.26094311,0.00038702,120]
[393295763,1762428208950,221.67586862,0.00038702,120]
[393295764,1762428213896,394.68470446,0.00038702,120]
[393295765,1762428214963,478.53388452,0.00038702,120]
[393295766,1762428215226,217.71642276,0.00038702,120]
[393295767,1762428216626,293.38005671,0.00038702,120]
[393295768,1762428220284,469.05272682,0.00038702,120]
[393295769,1762428220765,502.91502407,0.00038702,120]
[393295770,1762428222077,347.70082006,0.00038702,120]
[393295771,1762428229670,353.54276181,0.00038702,120]
[393295772,1762428240118,254.77739385,0.00038702,120]
[393295773,1762428242884,234.37426296,0.00038702,120]
[393295774,1762428245651,274.91204336,0.00038702,120]
[393295775,1762428246780,320.79708336,0.00038702,120]
[393295776,1762428252500,500.0,0.00038702,120]
[393295777,1762428252730,500.0,0.00038702,120]
[393295778,1762428252973,500.0,0.00038702,120]
[393295779,1762428253246,500.0,0.00038702,120]
[393295780,1762428253491,209.93629792,0.00038702,120]
[393295781,1762428258263,347.42019809,0.00038702,120]
[393295782,1762428259812,169.5496776,0.00038702,120]
[393295783,1762428264677,2500.0,0.000179,3]
[393295784,1762428265071,300.42374683,0.00038702,120]
[393295785,1762428267057,260.31555045,0.00038702,120]
[393295786,1762428270648,263.81411416,0.00038702,120]
[393295787,1762428275459,211.06996188,0.00038702,120]
[393295788,1762428277229,251.74163713,0.00038702,120]
[393295789,1762428277405,285.10125547,0.00038702,120]
[393295790,1762428282442,385.8961328,0.00038702,120]
[393295791,1762428282517,210.70555891,0.00038702,120]
[393295792,1762428283352,2500.0,0.00017891,3]
[393295793,1762428284456,150.01,0.00038702,30]
[393295794,1762428286001,150.02,0.00038702,30]
[393295795,1762428286313,250.51918061,0.00038702,120]
[393295796,1762428288511,424.65702638,0.00038702,120]
[393295797,1762428291877,349.34442032,0.00038702,120]
[393295798,1762428292282,500.0,0.00038702,120]
[393295799,1762428292383,500.0,0.00038702,120]
[393295800,1762428292617,500.0,0.00038702,120]
[393295801,1762428292873,399.56719574,0.00038702,120]
[393295802,1762428294798,278.94075364,0.00038702,120]
[393295803,1762428296765,367.90931043,0.00038702,120]
[393295804,1762428299899,414.02240851,0.00038702,120]
[393295805,1762428302916,2500.0,0.00017882,3]
[393295806,1762428307076,454.92761242,0.00038702,120]
[393295807,1762428307357,419.11326761,0.00038702,120]
[393295808,1762428307997,426.34925374,0.00038702,120]
[393295809,1762428310792,217.13566652,0.00038702,120]
[393295810,1762428314314,423.20306923,0.00038702,120]
[393295811,1762428316502,500.0,0.00038702,120]
[393295812,1762428316737,500.0,0.00038702,120]
[393295813,1762428316976,500.0,0.00038702,120]
[393295814,1762428317225,500.0,0.00038702,120]
[393295815,1762428317475,500.0,0.00038702,120]
[393295816,1762428318102,500.0,0.00038702,120]
[393295817,1762428318187,312.22137748,0.00038702,60]
[393295818,1762428318370,501.8481205,0.00038702,120]
[393295819,1762428321684,2500.0,0.00017874,3]
[393295820,1762428324673,377.90996695,0.00038702,120]
[393295821,1762428324991,430.78740593,0.00038702,120]
[393295822,1762428327879,417.8053229,0.00038702,120]
[393295823,1762428328116,234.4603752,0.00038702,30]
[393295824,1762428328815,359.70544249,0.00038702,120]
[393295825,1762428328894,476.10744078,0.00038702,120]
[393295826,1762428328992,492.51880975,0.00038702,120]
[393295827,1762428331953,346.81299257,0.00038702,120]
[393295832,1762428336164,279.76983781,0.00038702,120]
[393295833,1762428338350,441.45606174,0.00038702,120]
[393295834,1762428340835,2500.0,0.00017865,3]
[393295835,1762428342174,459.02135512,0.00038702,120]
[393295836,1762428342748,153.45888463,0.00038702,120]
[393295837,1762428346025,424.05677302,0.00038702,120]
[393295838,1762428350512,185.46992492,0.00038702,120]
[393295839,1762428351311,170.2699989,0.00038702,120]
[393295840,1762428351509,405.67161592,0.00038702,120]
[393295841,1762428355658,361.1795901,0.00038702,120]
[393295842,1762428359070,299.96496329,0.00038702,120]
[393295843,1762428359615,2500.0,0.00017856,3]
[393295844,1762428360857,350.09259455,0.00038702,120]
[393295845,1762428361539,227.97,0.00038702,120]
[393295846,1762428362282,200.0,0.00038702,30]
[393295847,1762428362803,253.63826128,0.00038702,120]
[393295848,1762428363342,193.50816515,0.00038702,120]
[393295849,1762428364542,152.37,8.039e-05,2]
[393295850,1762428364747,152.37,8.522e-05,2]
[393295851,1762428364947,152.37,9.005e-05,2]
[393295852,1762428365157,152.37,9.488e-05,2]
[393295853,1762428365258,500.0,0.00038702,120]
[393295854,1762428365355,152.37,9.97e-05,2]
[393295855,1762428365498,203.62196773,0.00038702,120]
[393295856,1762428365555,152.37,0.00010453,2]
[393295857,1762428365756,152.37,0.00010936,2]
[393295858,1762428366012,152.37,0.00011418,2]
[393295859,1762428366157,152.37,0.00011901,2]
[393295860,1762428366364,152.37,0.00012384,2]
[393295861,1762428366560,152.37,0.00012867,2]
[393295862,1762428366761,152.37,0.00013349,2]
[393295863,1762428366984,152.37,0.00013832,2]
[393295864,1762428367185,152.37,0.00014315,2]
[393295865,1762428367375,152.37,0.00014798,2]
[393295866,1762428367717,174.131252,0.00038702,120]
[393295867,1762428368004,440.5773374,0.00038702,120]
[393295868,1762428369103,209.92354674,0.00038702,120]
[393295869,1762428369956,459.45391509,0.00038702,120]
[393295870,1762428372925,347.7009065,0.00038702,120]
[393295871,1762428373632,247.70979543,0.00038702,120]
[393295872,1762428375298,175.75600333,0.00038702,120]
[393295873,1762428375418,488.22879197,0.00038702,120]
[393295874,1762428376465,444.52006097,0.00038702,120]
[393295875,1762428378327,2500.0,0.00017847,3]
[393295876,1762428378406,398.51983065,0.00038702,120]
[393295877,1762428378773,300.11344946,0.00038702,120]
[393295878,1762428380693,493.3302795,0.00038702,120]
[393295879,1762428382105,249.74112432,0.00038702,120]
[393295880,1762428382810,213.37626376,0.00038702,120]
[393295881,1762428387478,160.57627873,0.00038702,120]
[393295882,1762428388369,226.67465595,0.00038702,120]
[393295883,1762428388832,550.11473218,0.00038702,120]
[393295884,1762428389328,500.0,0.00038702,120]
[393295885,1762428389566,277.94675088,0.00038702,120]
[393295886,1762428392627,424.48630234,0.00038702,120]
[393295887,1762428394957,228.27889229,0.00038702,120]
[393295888,1762428395930,313.16777416,0.00038702,120]
[393295889,1762428396241,309.97747212,0.00038702,120]
[393295890,1762428397548,2500.0,0.00017838,3]
[393295891,1762428397809,206.04885707,0.00038702,120]
[393295892,1762428399216,227.27556979,0.00038702,30]
[393295893,1762428401070,456.20320794,0.00038702,120]
[393295894,1762428401233,460.76974974,0.00038702,120]
[393295895,1762428404443,296.69502153,0.00038702,120]
[393295896,1762428406213,300.99123409,0.00038702,120]
[393295897,1762428406608,439.42360242,0.00038702,120]
[393295898,1762428408443,468.75525823,0.00038702,120]
[393295899,1762428409877,259.29637736,0.00038702,120]
[393295900,1762428410222,484.24649271,0.00038702,120]
[393295901,1762428410298,319.93883452,0.00038702,120]
[393295902,1762428411122,339.298997,0.00038702,120]
[393295903,1762428411483,454.31628089,0.00038702,120]
[393295904,1762428412344,5000.0,0.000162,5]
[393295905,1762428412543,427.21991327,0.00038702,120]
[393295906,1762428414019,333.50176392,0.00038702,120]
[393295907,1762428414627,454.38301509,0.00038702,120]
[393295908,1762428415722,208.18088677,0.00038702,120]
[393295909,1762428415938,470.71467179,0.00038702,120]
[393295910,1762428416264,2500.0,0.0001783,3]
[393295911,1762428418907,447.93391616,0.00038702,120]
[393295912,1762428419350,329.73615123,0.00038702,120]
[393295913,1762428421192,349.18003189,0.00038702,120]
[393295914,1762428422637,159.41005656,0.00038702,120]
[393295915,1762428422783,383.51763609,0.00038702,120]
[393295916,1762428423886,511.60529209,0.00038702,120]
[393295917,1762428424742,151.0,0.00038702,120]
[393295918,1762428425036,468.00262595,0.00038702,120]
[393295919,1762428425120,500.0,0.00038702,120]
[393295920,1762428425347,151.0,0.00038702,120]
[393295921,1762428425682,500.0,0.00038702,120]
[393295922,1762428425769,500.0,0.00038702,120]
[393295923,1762428425918,500.0,0.00038702,120]
[393295924,1762428426002,151.0,0.00038702,120]
[393295925,1762428426160,500.0,0.00038702,120]
[393295926,1762428426288,500.0,0.00038702,120]
[393295927,1762428426391,308.62111692,0.00038702,120]
[393295928,1762428426565,151.0,0.00038702,120]
[393295929,1762428426892,500.0,0.00038702,120]
[393295930,1762428427183,151.0,0.00038702,120]
[393295931,1762428427267,500.0,0.00038702,120]
[393295932,1762428427517,500.0,0.00038702,120]
[393295933,1762428427614,250.0,0.00038702,120]
[393295934,1762428427819,151.0,0.00038702,120]
[393295935,1762428427912,500.0,0.00038702,120]
[393295936,1762428428144,500.0,0.00038702,120]
[393295937,1762428428230,250.0,0.00038702,120]
[393295938,1762428428323,500.0,0.00038702,120]
[393295939,1762428428435,151.0,0.00038702,120]
[393295940,1762428428526,500.0,0.00038702,120]
[393295941,1762428428759,500.0,0.00038702,120]
[393295942,1762428428845,250.0,0.00038702,120]
[393295943,1762428428932,500.0,0.00038702,120]
[393295944,1762428429031,151.0,0.00038702,120]
[393295950,1762428429227,500.0,0.00038702,120]
[393295951,1762428429368,500.0,0.00038702,120]
[393295952,1762428429478,500.0,0.00038702,120]
[393295953,1762428429584,600.0,0.00038702,120]
[393295954,1762428429670,151.0,0.00038702,120]
[393295955,1762428429842,500.0,0.00038702,120]
[393295956,1762428430050,250.0,0.00038702,120]
[393295957,1762428430137,265.90331723,0.00038702,120]
[393295958,1762428430223,500.0,0.00038702,120]
[393295959,1762428430308,600.0,0.00038702,120]
[393295960,1762428430392,151.0,0.00038702,120]
[393295961,1762428430480,500.0,0.00038702,120]
[393295962,1762428430567,500.0,0.00038702,120]
[393295963,1762428430723,250.0,0.00038702,120]
[393295964,1762428430828,600.0,0.00038702,120]
[393295965,1762428430964,179.19362676,0.00038702,120]
[393295966,1762428431049,151.0,0.00038702,120]
[393295967,1762428431135,500.0,0.00038702,120]
[393295968,1762428431221,500.0,0.00038702,120]
[393295969,1762428431381,250.0,0.00038702,120]
[393295970,1762428431465,600.0,0.00038702,120]
[393295971,1762428431577,230.85830423,0.00038702,120]
[393295972,1762428431663,151.0,0.00038702,120]
[393295973,1762428431743,500.0,0.00038702,120]
[393295974,1762428431823,500.0,0.00038702,120]
[393295975,1762428432032,250.0,0.00038702,120]
[393295976,1762428432117,600.0,0.00038702,120]
[393295977,1762428432795,500.0,0.00038702,120]
[393295978,1762428432870,151.0,0.00038702,120]
[393295979,1762428432951,500.0,0.00038702,120]
[393295980,1762428433028,195.94929068,0.00038702,120]
[393295981,1762428433105,500.0,0.00038702,120]
[393295982,1762428433183,151.0,0.00038702,120]
[393295983,1762428433260,500.0,0.00038702,120]
[393295984,1762428433337,600.0,0.00038702,120]
[393295985,1762428433527,500.0,0.00038702,120]
[393295986,1762428433610,151.0,0.00038702,120]
[393295987,1762428433689,500.0,0.00038702,120]
[393295988,1762428434158,500.0,0.00038702,120]
[393295989,1762428434243,295.89282027,0.00038702,120]
[393295990,1762428434325,151.0,0.00038702,120]
[393295991,1762428434406,500.0,0.00038702,120]
[393295992,1762428434785,500.0,0.00038702,120]
[393295993,1762428434916,151.0,0.00038702,120]
[393295994,1762428434999,500.0,0.00038702,120]
[393295995,1762428435139,250.0,0.00038702,120]
[393295996,1762428435568,500.0,0.00038702,120]
[393295997,1762428435649,500.0,0.00038702,120]
[393295998,1762428435722,151.0,0.00038702,120]
[393295999,1762428435755,2500.0,0.00017821,3]
[393296001,1762428435854,250.0,0.00038702,120]
[393296002,1762428435929,250.0,0.00038702,120]
[393296003,1762428436160,500.0,0.00038702,120]
[393296004,1762428436241,500.0,0.00038702,120]
[393296005,1762428436320,151.0,0.00038702,120]
[393296006,1762428436457,184.65536455,0.00038702,120]
[393296007,1762428436541,250.0,0.00038702,120]
[393296008,1762428436760,500.0,0.00038702,120]
[393296009,1762428436839,500.0,0.00038702,120]
[393296010,1762428436914,200.0,0.00038702,120]
[393296011,1762428436994,151.0,0.00038702,120]
[393296012,1762428437436,500.0,0.00038702,120]
[393296013,1762428437668,250.0,0.00038702,120]
[393296014,1762428437741,250.0,0.00038702,120]
[393296015,1762428437967,200.0,0.00038702,120]
[393296016,1762428438312,250.0,0.00038702,120]
[393296017,1762428438388,250.0,0.00038702,120]
[393296018,1762428438938,250.0,0.00038702,120]
[393296019,1762428439016,250.0,0.00038702,120]
[393296020,1762428439551,250.0,0.00038702,120]
[393296021,1762428439630,250.0,0.00038702,120]
[393296022,1762428440237,250.0,0.00038702,120]
[393296023,1762428440622,250.0,0.00038702,120]
[393296024,1762428440704,397.05077259,0.00038702,120]
[393296025,1762428440883,250.0,0.00038702,120]
[393296026,1762428441230,250.0,0.00038702,120]
[393296027,1762428441542,250.0,0.00038702,120]
[393296028,1762428441851,250.0,0.00038702,120]
[393296029,1762428442154,250.0,0.00038702,120]
[393296030,1762428442554,250.0,0.00038702,120]
[393296031,1762428442984,250.0,0.00038702,120]
[393296032,1762428443433,250.0,0.00038702,120]
[393296033,1762428443512,250.0,0.00038702,120]
[393296034,1762428444056,250.0,0.00038702,120]
[393296035,1762428444368,250.0,0.00038702,120]
[393296036,1762428444520,199.04188855,0.00038702,120]
[393296037,1762428444704,250.0,0.00038702,120]
[393296038,1762428444785,250.0,0.00038702,120]
[393296040,1762428444904,151.0,0.00038702,120]
[393296041,1762428445321,250.0,0.00038702,120]
[393296042,1762428445427,250.0,0.00038702,120]
[393296043,1762428445514,151.0,0.00038702,120]
[393296044,1762428446042,250.0,0.00038702,120]
[393296045,1762428446157,151.0,0.00038702,120]
[393296046,1762428446237,250.0,0.00038702,120]
[393296047,1762428446718,250.0,0.00038702,120]
[393296048,1762428446795,151.0,0.00038702,120]
[393296049,1762428446877,250.0,0.00038702,120]
[393296050,1762428447348,250.0,0.00038702,120]
[393296051,1762428447437,151.0,0.00038702,120]
[393296052,1762428447517,250.0,0.00038702,120]
[393296053,1762428448012,250.0,0.00038702,120]
[393296054,1762428448096,151.0,0.00038702,120]
[393296055,1762428448640,151.0,0.00038702,120]
[393296056,1762428448724,250.0,0.00038702,120]
[393296057,1762428449145,457.47233301,0.00038702,120]
[393296058,1762428449292,250.0,0.00038702,120]
[393296059,1762428449370,151.0,0.00038702,120]
[393296060,1762428449926,250.0,0.00038702,120]
[393296061,1762428450016,151.0,0.00038702,120]
[393296062,1762428450571,250.0,0.00038702,120]
[393296063,1762428450648,151.0,0.00038702,120]
[393296064,1762428450872,335.11695039,0.00038702,120]
[393296067,1762428451232,151.0,0.00038702,120]
[393296068,1762428451866,151.0,0.00038702,120]
[393296069,1762428452479,151.0,0.00038702,120]
[393296070,1762428453297,151.0,0.00038702,120]
[393296071,1762428453769,151.0,0.00038702,120]
[393296072,1762428454411,151.0,0.00038702,120]
[393296073,1762428454687,2500.0,0.00017812,3]
[393296074,1762428455040,151.0,0.00038703,120]
[393296075,1762428455653,151.0,0.00038703,120]
[393296076,1762428456269,151.0,0.00038703,120]
[393296077,1762428456901,151.0,0.00038703,120]
[393296078,1762428458337,222.80365988,0.00038703,120]
[393296079,1762428459766,332.45079787,0.00038703,60]
[393296081,1762428462728,151.0,0.00038703,120]
[393296082,1762428462809,194.31988455,0.00038703,120]
[393296083,1762428463705,156.587,0.00038703,120]
[393296084,1762428464273,156.587,0.00038703,120]
[393296085,1762428468168,423.92063751,0.00038703,120]
[393296086,1762428469417,7563.46,0.00015,2]
[393296087,1762428469442,10000.01,0.00015,2]
[393296088,1762428469467,10000.01,0.00015,2]
[393296089,1762428469493,10000.01,0.00015,2]
[393296090,1762428469517,10000.01,0.00015,2]
[393296091,1762428469543,10000.01,0.00015,2]
[393296092,1762428469566,10000.01,0.00015,2]
[393296093,1762428469590,10000.01,0.00015,2]
[393296094,1762428469613,10000.01,0.00015,2]
[393296095,1762428469637,10000.01,0.00015,2]
[393296096,1762428469735,304.04269117,0.00038703,120]
[393296097,1762428469967,487.7549771,0.0003,120]
[393296098,1762428470294,-265.99323485,0.00015,2]
[393296099,1762428472723,185.28746165,0.00038703,120]
[393296100,1762428473372,-240.982366,0.00015,2]
[393296101,1762428475564,-221.80777406,0.00015,2]
[393296102,1762428476521,168.73332597,0.00038703,120]
[393296103,1762428477125,-259.25212382,0.00015,2]
[393296104,1762428477427,888.91708898,0.00017572,7]
[393296105,1762428478409,190.03351952,0.00038703,120]
[393296106,1762428479982,-221.96915492,0.00015,2]
[393296107,1762428481158,-3037.283163,0.00015,2]
[393296108,1762428481182,-10000.01,0.00015,2]
[393296109,1762428481292,-10000.01,0.00015,2]
[393296110,1762428481416,-10000.01,0.00015,2]
[393296111,1762428481526,-10000.01,0.00015,2]
[393296112,1762428481642,-3188.51557552,0.00015,2]
[393296113,1762428481666,-3622.97884896,0.00015,2]
[393296115,1762428482484,300.0,0.00014999,2]
[393296124,1762428506272,350.49382935,0.00038703,120]
[393296129,1762428508307,151.0,0.00015,2]
[393296130,1762428508443,250.68201195,0.00015,2]
[393296132,1762428510342,500.0,0.00038703,120]
[393296135,1762428511776,399.50147694,0.00038703,48]
[393296137,1762428512601,200.84100597,0.00015,2]
[393296138,1762428512984,500.0,0.00038703,120]
[393296139,1762428513235,500.0,0.00038703,120]
[393296140,1762428513433,2669.00823233,0.00015,3]
[393296141,1762428513467,50000.0,0.00015,3]
[393296142,1762428513497,22112.00476602,0.00015,3]
[393296144,1762428513847,500.0,0.00038703,120]
[393296145,1762428513952,500.0,0.00038703,120]
[393296146,1762428514041,291.69829442,0.00038703,120]
[393296147,1762428514693,160.20671602,0.00038703,120]
[393296153,1762428517821,606.12973752,0.0003,120]
[393296154,1762428526686,160.52929351,0.00038703,120]
[393296155,1762428533302,300.0,0.00038703,120]
[393296156,1762428540196,500.0,0.00038703,120]
[393296157,1762428540410,240.57917419,0.00038703,120]
[393296158,1762428546358,186.92614178,0.00038703,120]
[393296162,1762428551160,441.42763575,0.00038703,120]
[393296163,1762428554347,309.56001564,0.00038703,120]
[393296165,1762428560304,345.68762986,0.00038703,120]
[393296166,1762428564982,500.0,0.00038703,120]
[393296167,1762428565240,500.0,0.00038703,120]
[393296168,1762428565485,237.05978451,0.00038703,120]
[393296169,1762428567007,170.13254342,0.00038703,120]
[393296170,1762428568547,445.53565722,0.00038703,120]
[393296176,1762428577484,289.67481513,0.00038703,120]
[393296177,1762428579449,417.40863766,0.00038703,120]
[393296178,1762428582224,225.30295703,0.00038703,120]
[393296179,1762428583729,406.73498113,0.00038703,30]
[393296180,1762428585297,200.0,0.00038703,120]
[393296183,1762428592601,1000.0,0.00013699,2]
[393296184,1762428594646,155.90078147,0.00038703,120]
[393296185,1762428604349,335.687923,0.00038703,120]
[393296186,1762428609066,456.26744332,0.00038703,120]
[393296187,1762428610917,500.0,0.00038703,120]
[393296188,1762428611169,261.82035551,0.00038703,120]
[393296189,1762428615890,238.61297828,0.00038703,120]
[393296190,1762428620302,500.0,0.00038703,120]
[393296191,1762428620531,500.0,0.00038703,120]
[393296192,1762428620766,500.0,0.00038703,120]
[393296193,1762428621009,268.52539408,0.00038703,120]
[393296194,1762428622800,500.0,0.00038703,120]
[393296195,1762428623051,500.0,0.00038703,120]
[393296196,1762428623299,554.35917604,0.00038703,120]
[393296197,1762428625418,500.0,0.00038703,120]
[393296198,1762428625499,500.0,0.00038703,120]
[393296199,1762428625669,500.0,0.00038703,120]
[393296200,1762428625807,500.0,0.00038703,120]
[393296201,1762428626341,339.48320321,0.00038703,120]
[393296202,1762428627943,461.93082684,0.00038703,120]
[393296203,1762428631219,500.0,0.00038703,120]
[393296214,1762428631689,514.98882539,0.00038703,120]
[393296215,1762428631814,-152.37,0.0001528,2]
[393296216,1762428631824,-1200.0,0.00015339,2]
[393296217,1762428631833,-300.0,0.0001534,2]
[393296218,1762428632084,-22.44151617,0.0001534,2]
[393296219,1762428632098,-172.55848383,0.0001534,2]
[393296220,1762428632107,-193.57347322,0.0001534,2]
[393296221,1762428632170,-2306.42652678,0.0001534,2]
[393296222,1762428632183,-300.0,0.00015399,2]
[393296223,1762428632192,-300.0,0.00015399,2]
[393296224,1762428632202,-1052.32012632,0.000154,2]
[393296225,1762428632217,-1035.14287689,0.000154,2]
[393296226,1762428632229,-3983.29275936,0.000154,2]
[393296227,1762428632255,-5763.990833,0.000154,2]
[393296228,1762428632264,-300.0,0.00015591,2]
[393296229,1762428632273,-329.23770299,0.00015591,2]
[393296230,1762428632282,-475.30266823,0.00015591,2]
[393296231,1762428632291,-1753.43,0.00015648,2]
[393296232,1762428632301,-1000.0,0.0001568,2]
[393296233,1762428632311,-152.37,0.00015763,2]
[393296234,1762428632320,-354.2572,0.00016011,2]
[393296235,1762428632329,-1963.1,0.00016111,2]
[393296236,1762428632339,-195.0,0.00016149,2]
[393296237,1762428632348,-195.0,0.00016277,2]
[393296238,1762428632358,-550.0,0.00016437,2]
[393296239,1762428632367,-2609.43,0.00016438,2]
[393296240,1762428632376,-501.13567703,0.00016438,2]
[393296241,1762428632385,-4561.74591874,0.000165,2]
[393296242,1762428633363,260.01038758,0.00038703,120]
[393296243,1762428634841,262.30793691,0.00038703,120]
[393296244,1762428635168,165.88570081,0.00038703,120]
[393296245,1762428635919,316.96370613,0.00038703,120]
[393296246,1762428637408,-500.0,0.0001611,2]
[393296247,1762428637418,-13.62985013,0.0001611,2]
[393296248,1762428637429,-486.37014987,0.0001611,2]
[393296249,1762428637439,-418.47972117,0.0001611,2]
[393296250,1762428637448,-500.0,0.00016438,2]
[393296251,1762428637457,-500.0,0.00016438,2]
[393296252,1762428637467,-500.0,0.00016438,2]
[393296253,1762428637477,-287.99296913,0.00016438,2]
[393296254,1762428637487,-432.15715983,0.00016438,2]
[393296255,1762428637622,-67.84284017,0.00016438,2]
[393296256,1762428637633,-286.45448924,0.00016438,2]
[393296285,1762428639524,-213.54551076,0.00016438,2]
[393296286,1762428639534,-500.0,0.00016438,2]
[393296287,1762428639544,-500.0,0.00016438,2]
[393296288,1762428639555,-3720.4447293,0.000165,2]
[393296289,1762428639567,-5126.86246663,0.000165,2]
[393296290,1762428639582,-1783.27677719,0.000165,2]
[393296291,1762428639593,-711.29295566,0.00016512,2]
[393296292,1762428639603,-382.97,0.00016522,2]
[393296293,1762428639612,-152.75677769,0.00016599,2]
[393296294,1762428639622,-356.53864972,0.000166,2]
[393296295,1762428639631,-3739.54066669,0.00016612,2]
[393296296,1762428639642,-3001.88347991,0.00016612,2]
[393296297,1762428639653,-1183.02511855,0.00016612,2]
[393296298,1762428639666,-626.33055597,0.00016612,2]
[393296299,1762428639677,-528.90242809,0.00016612,2]
[393296300,1762428639689,-920.30775079,0.00016612,2]
[393296301,1762428639699,-150.99,0.00016612,2]
[393296302,1762428639708,-279.02965661,0.00016627,2]
[393296303,1762428639718,-278.41830624,0.00016627,2]
[393296304,1762428639727,-358.2598,0.00016627,2]
[393296305,1762428639736,-1600.83199843,0.00016658,2]
[393296306,1762428639746,-188.42,0.00016712,2]
[393296307,1762428639755,-273.72,0.00016717,2]
[393296308,1762428639764,-151.0,0.00016717,2]